fUSD/lending_fUSD_20250814
["ID","MTS","AMOUNT","RATE_DAILY","PERIOD"]
[379195845,1755183046116,-1593.9,0.00027397,2]
[379195846,1755183046127,-400.0,0.00027397,2]
[379195847,1755183046136,-453.19,0.00027397,2]
[379195848,1755183046146,-2745.85,0.00027397,2]
[379195849,1755183046157,-400.0,0.00027397,2]
[379195850,1755183046167,-1221.94,0.00027397,2]
[379195851,1755183046177,-400.0,0.00027397,2]
[379195852,1755183046186,-1216.05,0.00027397,2]
[379195853,1755183046196,-509.36,0.00027397,2]
[379195854,1755183046205,-996.09,0.00027397,2]
[379195855,1755183046215,-1898.09,0.00027397,2]
[379195856,1755183046224,-229.72419692,0.00027397,2]
[379195857,1755183046235,-400.0,0.00027397,2]
[379195858,1755183046245,-500.29,0.00027397,2]
[379195859,1755183046256,-380.99814733,0.00027397,2]
[379195860,1755183046268,-2750.12,0.00027397,2]
[379195861,1755183046278,-400.0,0.00027397,2]
[379195862,1755183046287,-687.21,0.00027397,2]
[379195863,1755183046296,-690.66,0.00027397,2]
[379195864,1755183046306,-883.77,0.00027397,2]
[379195865,1755183046316,-400.0,0.00027397,2]
[379195866,1755183046325,-402.80480812,0.00027397,2]
[379195867,1755183046335,-1565.8,0.00027397,2]
[379195868,1755183046349,-620.71,0.00027397,2]
[379195869,1755183046359,-400.0,0.00027397,2]
[379195870,1755183046370,-1547.03,0.00027397,2]
[379195871,1755183046381,-400.0,0.00027397,2]
[379195872,1755183046392,-400.0,0.00027397,2]
[379195873,1755183046402,-400.0,0.00027397,2]
[379195874,1755183046411,-917.86,0.00027397,2]
[379195875,1755183046422,-400.0,0.00027397,2]
[379195876,1755183046432,-1783.59,0.00027397,2]
[379195877,1755183046442,-615.84,0.00027397,2]
[379195878,1755183046452,-2614.16,0.00027397,2]
[379195879,1755183046463,-2422.76,0.00027397,2]
[379195880,1755183046473,-400.0,0.00027397,2]
[379195881,1755183046483,-916.19,0.00027397,2]
[379195882,1755183046492,-365.24774894,0.00027397,2]
[379195943,1755183047891,-2668.79225106,0.00027397,2]
[379195944,1755183047901,-1589.9,0.00027397,2]
[379195945,1755183047911,-400.0,0.00027397,2]
[379195946,1755183047920,-400.0,0.00027397,2]
[379195947,1755183047930,-400.0,0.00027397,2]
[379195948,1755183047939,-400.0,0.00027397,2]
[379195949,1755183047948,-791.74,0.00027397,2]
[379195950,1755183047958,-797.36,0.00027397,2]
[379195951,1755183047967,-400.0,0.00027397,2]
[379195952,1755183047976,-400.0,0.00027397,2]
[379195953,1755183047986,-400.0,0.00027397,2]
[379195954,1755183047996,-400.0,0.00027397,2]
[379195955,1755183048006,-271.598177,0.00027397,7]
[379195956,1755183048016,-4512.05,0.00027397,2]
[379195957,1755183048026,-773.91,0.00027397,2]
[379195958,1755183048036,-773.91,0.00027397,2]
[379195959,1755183048046,-500.0,0.00027397,2]
[379195960,1755183048055,-271.598177,0.00027397,7]
[379195961,1755183048064,-2386.11,0.00027397,2]
[379195962,1755183048074,-773.91,0.00027397,2]
[379195963,1755183048084,-773.91,0.00027397,2]
[379195964,1755183048093,-500.0,0.00027397,2]
[379195965,1755183048103,-400.0,0.00027397,2]
[379195966,1755183048113,-773.91,0.00027397,2]
[379195967,1755183048123,-500.0,0.00027397,2]
[379195968,1755183048133,-451.1,0.00027397,2]
[379195969,1755183048142,-500.0,0.00027397,2]
[379195970,1755183048152,-500.0,0.00027397,2]
[379195971,1755183048161,-773.91,0.00027397,2]
[379195972,1755183048171,-500.0,0.00027397,2]
[379195973,1755183048180,-500.0,0.00027397,2]
[379195974,1755183048190,-773.91,0.00027397,2]
[379195975,1755183048200,-500.0,0.00027397,2]
[379195976,1755183048210,-773.91,0.00027397,2]
[379195977,1755183048220,-500.0,0.00027397,2]
[379195978,1755183048229,-500.0,0.00027397,2]
[379195979,1755183048239,-773.91,0.00027397,2]
[379195980,1755183048248,-500.0,0.00027397,2]
[379195981,1755183048258,-400.0,0.00027397,2]
[379195982,1755183048268,-773.91,0.00027397,2]
[379195983,1755183048278,-500.0,0.00027397,2]
[379195984,1755183048288,-773.91,0.00027397,2]
[379195985,1755183048297,-773.91,0.00027397,2]
[379195986,1755183048307,-500.0,0.00027397,2]
[379195987,1755183048316,-773.91,0.00027397,2]
[379195988,1755183048325,-400.0,0.00027397,2]
[379195989,1755183048335,-271.598177,0.00027397,7]
[379195990,1755183048348,-500.0,0.00027397,2]
[379195991,1755183048358,-773.91,0.00027397,2]
[379195992,1755183048368,-2989.93,0.00027397,2]
[379195993,1755183048379,-773.91,0.00027397,2]
[379195994,1755183048389,-271.598177,0.00027397,7]
[379195995,1755183048399,-500.0,0.00027397,2]
[379195996,1755183048409,-773.91,0.00027397,2]
[379195997,1755183048418,-500.0,0.00027397,2]
[379195998,1755183048428,-773.91,0.00027397,2]
[379195999,1755183048438,-500.0,0.00027397,2]
[379196000,1755183048448,-773.91,0.00027397,2]
[379196001,1755183048458,-500.0,0.00027397,2]
[379196002,1755183048467,-400.0,0.00027397,2]
[379196003,1755183048477,-1192.59,0.00027397,2]
[379196004,1755183048487,-773.91,0.00027397,2]
[379196005,1755183048496,-500.0,0.00027397,2]
[379196006,1755183048506,-773.91,0.00027397,2]
[379196007,1755183048515,-471.48790317,0.00027397,2]
[379196008,1755183048524,-773.91,0.00027397,2]
[379196009,1755183048534,-773.91,0.00027397,2]
[379196010,1755183048543,-773.91,0.00027397,2]
[379196011,1755183048554,-774.14591213,0.00027397,2]
[379196012,1755183048564,-400.0,0.00027397,2]
[379196013,1755183048574,-3452.94,0.00027397,2]
[379196014,1755183048583,-400.0,0.00027397,2]
[379196015,1755183048593,-1221.49,0.00027397,2]
[379196016,1755183048604,-521.57,0.00027397,2]
[379196017,1755183048614,-401.24825927,0.00027397,2]
[379196018,1755183048627,-640.62,0.00027397,2]
[379196019,1755183048638,-1076.16,0.00027397,2]
[379196020,1755183048648,-400.0,0.00027397,2]
[379196021,1755183048658,-400.0,0.00027397,2]
[379196022,1755183048668,-1004.86,0.00027397,2]
[379196023,1755183048678,-1099.68,0.00027397,2]
[379196024,1755183048688,-2844.95,0.00027397,2]
[379196025,1755183048698,-723.89,0.00027397,2]
[379196026,1755183048708,-1139.44,0.00027397,2]
[379196027,1755183048718,-400.0,0.00027397,2]
[379196028,1755183048728,-400.0,0.00027397,2]
[379196029,1755183048738,-1795.19,0.00027397,2]
[379196030,1755183048748,-403.39813763,0.00027397,2]
[379196031,1755183048758,-400.0,0.00027397,2]
[379196032,1755183048768,-400.0,0.00027397,2]
[379196033,1755183048778,-1520.18,0.00027397,2]
[379196034,1755183048788,-400.0,0.00027397,2]
[379196035,1755183048798,-1714.27,0.00027397,2]
[379196036,1755183048808,-400.0,0.00027397,2]
[379196037,1755183048818,-1700.65,0.00027397,2]
[379196038,1755183048828,-384.92407409,0.00027397,2]
[379196039,1755183048972,-400.0,0.00027397,2]
[379196040,1755183048983,-400.0,0.00027397,2]
[379196041,1755183048992,-1669.84,0.00027397,2]
[379196042,1755183049002,-698.05,0.00027397,2]
[379196043,1755183049011,-2647.98,0.00027397,2]
[379196044,1755183049021,-1442.14,0.00027397,2]
[379196045,1755183049031,-400.0,0.00027397,2]
[379196046,1755183049040,-2363.83,0.00027397,2]
[379196047,1755183049050,-400.0,0.00027397,2]
[379196048,1755183049059,-458.16,0.00027397,2]
[379196049,1755183049069,-400.0,0.00027397,2]
[379196050,1755183049078,-400.0,0.00027397,2]
[379196051,1755183049087,-1426.84,0.00027397,2]
[379196052,1755183049097,-400.0,0.00027397,2]
[379196053,1755183049107,-400.0,0.00027397,2]
[379196054,1755183049117,-500.0,0.00027397,2]
[379196055,1755183049129,-500.0,0.00027397,2]
[379196056,1755183049139,-500.0,0.00027397,2]
[379196057,1755183049149,-400.0,0.00027397,2]
[379196058,1755183049159,-500.0,0.00027397,2]
[379196059,1755183049170,-500.0,0.00027397,2]
[379196060,1755183049180,-400.0,0.00027397,2]
[379196061,1755183049190,-500.0,0.00027397,2]
[379196062,1755183049201,-500.0,0.00027397,2]
[379196063,1755183049211,-642.74414806,0.00027397,2]
[379196064,1755183049221,-2456.66,0.00027397,2]
[379196065,1755183049231,-400.0,0.00027397,2]
[379196066,1755183049241,-218.18,0.00027397,2]
[379196067,1755183049251,-269.90721755,0.00027397,2]
[379196068,1755183049279,-1024.265793,0.00027397,2]
[379196069,1755183049321,-594.15698945,0.00027397,2]
[379196070,1755183049336,-400.0,0.00027397,2]
[379196071,1755183049346,-2000.18,0.00027397,2]
[379196072,1755183049357,-427.57,0.00027397,2]
[379196073,1755183049370,-458.69,0.00027397,2]
[379196074,1755183049383,-400.0,0.00027397,2]
[379196075,1755183049393,-400.0,0.00027397,2]
[379196076,1755183049404,-500.0,0.00027397,2]
[379196077,1755183049416,-617.05,0.00027397,2]
[379196078,1755183049425,-500.0,0.00027397,2]
[379196079,1755183049435,-726.88,0.00027397,2]
[379196080,1755183049445,-500.0,0.00027397,2]
[379196081,1755183049454,-500.0,0.00027397,2]
[379196082,1755183049466,-500.0,0.00027397,2]
[379196083,1755183049475,-500.0,0.00027397,2]
[379196084,1755183049485,-500.0,0.00027397,2]
[379196085,1755183049495,-400.0,0.00027397,2]
[379196086,1755183049504,-407.01,0.00027397,2]
[379196087,1755183049514,-2110.19,0.00027397,2]
[379196088,1755183049523,-401.08536678,0.00027397,2]
[379196089,1755183049534,-937.0,0.00027397,2]
[379196090,1755183049544,-400.0,0.00027397,2]
[379196091,1755183049554,-7.16597872,0.00027397,2]
[379196092,1755183049588,-150.0,0.00027321,2]
[379196093,1755183049598,-625.91402128,0.00027397,2]
[379196094,1755183049608,-400.0,0.00027397,2]
[379196095,1755183049617,-19.13412812,0.00027397,2]
[379196096,1755183049631,-380.86587188,0.00027397,2]
[379196097,1755183049640,-809.65,0.00027397,2]
[379196098,1755183049650,-163.56327008,0.00027397,2]
[379196099,1755183049681,-711.09,0.00027397,2]
[379196100,1755183049692,-242.27672992,0.00027397,2]
[379196101,1755183049702,-726.48,0.00027397,2]
[379196102,1755183049711,-2583.68,0.00027397,2]
[379196103,1755183049720,-400.0,0.00027397,2]
[379196104,1755183049730,-400.0,0.00027397,2]
[379196105,1755183049741,-924.93,0.00027397,2]
[379196106,1755183049751,-400.0,0.00027397,2]
[379196107,1755183049760,-400.0,0.00027397,2]
[379196108,1755183049769,-4950.11062767,0.00027397,2]
[379196109,1755183049778,-653.04,0.00027397,2]
[379196110,1755183049788,-795.16,0.00027397,2]
[379196111,1755183049797,-614.45,0.00027397,2]
[379196112,1755183049807,-744.65,0.00027397,2]
[379196113,1755183049817,-400.0,0.00027397,2]
[379196114,1755183049826,-400.0,0.00027397,2]
[379196115,1755183049836,-400.0,0.00027397,2]
[379196116,1755183049845,-2989.36,0.00027397,2]
[379196117,1755183049856,-400.0,0.00027397,2]
[379196118,1755183049866,-400.0,0.00027397,2]
[379196119,1755183049877,-1197.4,0.00027397,2]
[379196120,1755183049887,-400.0,0.00027397,2]
[379196121,1755183049897,-400.0,0.00027397,2]
[379196122,1755183049907,-400.0,0.00027397,2]
[379196123,1755183049917,-2488.8,0.00027397,2]
[379196124,1755183049927,-415.33,0.00027397,2]
[379196125,1755183049938,-400.0,0.00027397,2]
[379196126,1755183049949,-400.0,0.00027397,2]
[379196127,1755183049958,-4011.16113706,0.00027397,2]
[379196128,1755183049973,-1342.94886294,0.00027397,2]
[379196129,1755183049982,-400.0,0.00027397,2]
[379196130,1755183049993,-400.0,0.00027397,2]
[379196131,1755183050002,-400.0,0.00027397,2]
[379196132,1755183050013,-400.0,0.00027397,2]
[379196133,1755183050023,-400.0,0.00027397,2]
[379196134,1755183050032,-400.0,0.00027397,2]
[379196135,1755183050042,-363.925565,0.00027397,7]
[379196136,1755183050051,-1013.79,0.00027397,2]
[379196137,1755183050061,-363.925565,0.00027397,7]
[379196138,1755183050071,-400.0,0.00027397,2]
[379196139,1755183050081,-363.925565,0.00027397,7]
[379196140,1755183050090,-690.01,0.00027397,2]
[379196141,1755183050099,-400.0,0.00027397,2]
[379196142,1755183050108,-200.0,0.00027397,2]
[379196143,1755183050118,-2337.67,0.00027397,2]
[379196144,1755183050129,-400.0,0.00027397,2]
[379196145,1755183050138,-400.0,0.00027397,2]
[379196146,1755183050147,-151.0,0.00027397,7]
[379196147,1755183050156,-864.59,0.00027397,2]
[379196148,1755183050166,-28.24197076,0.00027397,2]
[379196149,1755183050179,-371.75802924,0.00027397,2]
[379196150,1755183050188,-763.97,0.00027397,2]
[379196151,1755183050197,-400.0,0.00027397,2]
[379196152,1755183050207,-6365.8,0.00027397,2]
[379196153,1755183050216,-763.97,0.00027397,2]
[379196154,1755183050226,-763.97,0.00027397,2]
[379196155,1755183050235,-363.925565,0.00027397,7]
[379196156,1755183050245,-546.80725576,0.00027397,2]
[379196160,1755183051820,-150.0,0.00025059,2]
[379196161,1755183051830,-150.0,0.00025312,2]
[379196162,1755183051839,-150.0,0.00025314,2]
[379196163,1755183051849,-150.0,0.00025405,2]
[379196164,1755183051862,-150.0,0.00025436,2]
[379196165,1755183051871,-150.0,0.00025461,2]
[379196166,1755183051882,-150.0,0.00025501,2]
[379196167,1755183051891,-150.0,0.00026269,2]
[379196168,1755183051901,-150.0,0.00026366,2]
[379196169,1755183051911,-150.0,0.00026399,2]
[379196170,1755183051920,-150.0,0.00026427,2]
[379196171,1755183051930,-150.0,0.00026468,2]
[379196172,1755183051940,-150.0,0.00026495,2]
[379196173,1755183051949,-150.0,0.00026605,2]
[379196174,1755183051959,-150.0,0.00026684,2]
[379196175,1755183051969,-150.0,0.0002686,2]
[379196176,1755183051979,-150.0,0.00026984,2]
[379196177,1755183051988,-150.0,0.00027219,2]
[379196178,1755183051997,-150.0,0.00027276,2]
[379196179,1755183052007,-82.48274424,0.00027397,2]
[379196180,1755183052016,-763.97,0.00027397,2]
[379196181,1755183052026,-291.88919033,0.00027397,2]
[379196183,1755183052078,-472.08080967,0.00027397,2]
[379196184,1755183052087,-363.925565,0.00027397,7]
[379196185,1755183052097,-763.97,0.00027397,2]
[379196186,1755183052106,-585.58224001,0.00027397,2]
[379196187,1755183052116,-1146.31,0.00027397,2]
[379196188,1755183052127,-763.97,0.00027397,2]
[379196189,1755183052136,-363.925565,0.00027397,7]
[379196190,1755183052146,-400.0,0.00027397,2]
[379196191,1755183052155,-400.0,0.00027397,2]
[379196192,1755183052164,-400.0,0.00027397,2]
[379196193,1755183052173,-1390.2,0.00027397,2]
[379196194,1755183052182,-1582.91,0.00027397,2]
[379196195,1755183052192,-890.37,0.00027397,2]
[379196196,1755183052201,-400.0,0.00027397,2]
[379196197,1755183052210,-797.82,0.00027397,2]
[379196198,1755183052219,-477.17,0.00027397,2]
[379196199,1755183052228,-400.0,0.00027397,2]
[379196200,1755183052238,-5958.37,0.00027397,2]
[379196201,1755183052247,-833.38,0.00027397,2]
[379196202,1755183052256,-852.58,0.00027397,2]
[379196203,1755183052265,-2654.48,0.00027397,2]
[379196204,1755183052276,-933.88,0.00027397,2]
[379196205,1755183052286,-1544.6,0.00027397,2]
[379196206,1755183052296,-400.0,0.00027397,2]
[379196207,1755183052305,-400.0,0.00027397,2]
[379196208,1755183052315,-500.0,0.00027397,2]
[379196209,1755183052324,-500.0,0.00027397,2]
[379196210,1755183052337,-484.72,0.00027397,2]
[379196211,1755183052347,-400.0,0.00027397,2]
[379196212,1755183052356,-2396.25,0.00027397,2]
[379196213,1755183052366,-400.0,0.00027397,2]
[379196214,1755183052377,-400.0,0.00027397,2]
[379196215,1755183052387,-400.0,0.00027397,2]
[379196216,1755183052396,-400.0,0.00027397,2]
[379196217,1755183052404,-166.548241,0.00027397,2]
[379196218,1755183052414,-3368.37,0.00027397,2]
[379196219,1755183052424,-214.29654027,0.00027397,2]
[379196220,1755183052433,-400.0,0.00027397,2]
[379196221,1755183052444,-400.0,0.00027397,2]
[379196222,1755183052453,-400.0,0.00027397,2]
[379196223,1755183052466,-1153.31,0.00027397,2]
[379196224,1755183052475,-4162.35,0.00027397,2]
[379196225,1755183052484,-500.0,0.00027397,2]
[379196226,1755183052493,-1217.0,0.00027397,3]
[379196227,1755183052502,-3622.1,0.00027397,2]
[379196228,1755183052512,-1356.08,0.00027397,2]
[379196229,1755183052521,-1217.0,0.00027397,3]
[379196230,1755183052530,-500.0,0.00027397,2]
[379196231,1755183052540,-435.12,0.00027397,2]
[379196232,1755183052550,-928.468469,0.00027397,7]
[379196233,1755183052559,-500.0,0.00027397,2]
[379196234,1755183052568,-400.0,0.00027397,2]
[379196235,1755183052577,-500.0,0.00027397,2]
[379196236,1755183052586,-668.96,0.00027397,2]
[379196237,1755183052595,-500.0,0.00027397,2]
[379196238,1755183052604,-500.0,0.00027397,2]
[379196239,1755183052614,-500.0,0.00027397,2]
[379196240,1755183052623,-500.0,0.00027397,2]
[379196241,1755183052633,-156.69599539,0.00027397,2]
[379196242,1755183052643,-2100.67,0.00027397,2]
[379196243,1755183052652,-400.0,0.00027397,2]
[379196244,1755183052662,-1061.07,0.00027397,2]
[379196245,1755183052671,-623.93,0.00027397,2]
[379196246,1755183052681,-1780.46,0.00027397,2]
[379196247,1755183052691,-928.468469,0.00027397,7]
[379196248,1755183052700,-400.0,0.00027397,2]
[379196249,1755183052709,-1566.54,0.00027397,2]
[379196250,1755183052719,-3833.83,0.00027397,2]
[379196251,1755183052728,-400.0,0.00027397,2]
[379196252,1755183052738,-5746.38,0.00027397,2]
[379196253,1755183052747,-3058.32,0.00027397,2]
[379196254,1755183052757,-500.0,0.00027397,2]
[379196255,1755183052766,-500.0,0.00027397,2]
[379196256,1755183052776,-500.0,0.00027397,2]
[379196257,1755183052785,-500.0,0.00027397,2]
[379196258,1755183052794,-500.0,0.00027397,2]
[379196259,1755183052804,-500.0,0.00027397,2]
[379196260,1755183052813,-804.72,0.00027397,2]
[379196261,1755183052823,-500.0,0.00027397,2]
[379196262,1755183052833,-400.0,0.00027397,2]
[379196263,1755183052843,-500.0,0.00027397,2]
[379196264,1755183052852,-500.0,0.00027397,2]
[379196265,1755183052862,-500.0,0.00027397,2]
[379196266,1755183052872,-500.0,0.00027397,2]
[379196267,1755183052882,-400.0,0.00027397,2]
[379196268,1755183052891,-500.0,0.00027397,2]
[379196269,1755183052901,-500.0,0.00027397,2]
[379196270,1755183052910,-500.0,0.00027397,2]
[379196271,1755183052920,-500.0,0.00027397,2]
[379196272,1755183052930,-500.0,0.00027397,2]
[379196273,1755183052939,-500.0,0.00027397,2]
[379196274,1755183052949,-400.0,0.00027397,2]
[379196275,1755183052959,-500.0,0.00027397,2]
[379196276,1755183052968,-500.0,0.00027397,2]
[379196277,1755183052978,-1991.43,0.00027397,2]
[379196278,1755183052988,-500.0,0.00027397,2]
[379196279,1755183052998,-355.81717624,0.00027397,2]
[379196280,1755183053008,-510.18,0.00027397,2]
[379196281,1755183053018,-487.13,0.00027397,2]
[379196282,1755183053029,-719.57,0.00027397,2]
[379196283,1755183053038,-2000.0,0.00027397,2]
[379196284,1755183053050,-400.0,0.00027397,2]
[379196285,1755183053059,-400.0,0.00027397,2]
[379196286,1755183053069,-400.0,0.00027397,2]
[379196287,1755183053080,-4059.27,0.00027397,2]
[379196288,1755183053089,-400.0,0.00027397,2]
[379196289,1755183053099,-400.0,0.00027397,2]
[379196290,1755183053109,-400.0,0.00027397,2]
[379196291,1755183053118,-1595.28,0.00027397,2]
[379196292,1755183053128,-978.04,0.00027397,2]
[379196293,1755183053138,-2591.75,0.00027397,2]
[379196294,1755183053148,-400.0,0.00027397,2]
[379196295,1755183053158,-400.0,0.00027397,2]
[379196296,1755183053168,-986.47,0.00027397,2]
[379196297,1755183053178,-400.0,0.00027397,2]
[379196298,1755183053188,-482.06,0.00027397,2]
[379196299,1755183053198,-400.0,0.00027397,2]
[379196300,1755183053207,-400.0,0.00027397,2]
[379196301,1755183053217,-3195.19,0.00027397,2]
[379196302,1755183053227,-151.0,0.00027397,7]
[379196303,1755183053237,-797.02,0.00027397,2]
[379196304,1755183053246,-1752.8,0.00027397,2]
[379196305,1755183053256,-797.02,0.00027397,2]
[379196306,1755183053266,-1018.74,0.00027397,2]
[379196307,1755183053275,-797.02,0.00027397,2]
[379196308,1755183053285,-925.3,0.00027397,2]
[379196309,1755183053295,-797.02,0.00027397,2]
[379196310,1755183053306,-400.0,0.00027397,2]
[379196311,1755183053315,-797.02,0.00027397,2]
[379196312,1755183053325,-797.02,0.00027397,2]
[379196313,1755183053335,-457.41,0.00027397,2]
[379196314,1755183053349,-797.02,0.00027397,2]
[379196315,1755183053359,-400.0,0.00027397,2]
[379196316,1755183053369,-202.00379,0.00027397,2]
[379196317,1755183053379,-1382.58,0.00027397,2]
[379196318,1755183053389,-2215.08,0.00027397,2]
[379196319,1755183053398,-400.0,0.00027397,2]
[379196320,1755183053408,-160.9332,0.00027397,7]
[379196321,1755183053418,-449.47,0.00027397,2]
[379196322,1755183053428,-545.88,0.00027397,2]
[379196323,1755183053437,-400.0,0.00027397,2]
[379196324,1755183053447,-400.0,0.00027397,2]
[379196325,1755183053456,-1639.73,0.00027397,2]
[379196326,1755183053466,-400.0,0.00027397,2]
[379196327,1755183053476,-5690.11,0.00027397,2]
[379196328,1755183053486,-422.39,0.00027397,2]
[379196329,1755183053496,-1039.4,0.00027397,2]
[379196330,1755183053505,-1859.25,0.00027397,2]
[379196331,1755183053514,-400.0,0.00027397,2]
[379196332,1755183053524,-400.0,0.00027397,2]
[379196333,1755183053534,-400.0,0.00027397,2]
[379196334,1755183053544,-1449.77,0.00027397,2]
[379196335,1755183053555,-1948.72,0.00027397,2]
[379196336,1755183053565,-2950.76,0.00027397,2]
[379196337,1755183053574,-400.0,0.00027397,2]
[379196338,1755183053584,-563.34,0.00027397,2]
[379196339,1755183053594,-428.23,0.00027397,2]
[379196340,1755183053604,-400.0,0.00027397,2]
[379196341,1755183053614,-3559.18,0.00027397,2]
[379196342,1755183053624,-1901.73,0.00027397,2]
[379196343,1755183053636,-400.0,0.00027397,2]
[379196344,1755183053646,-3483.36,0.00027397,2]
[379196345,1755183053657,-2525.25,0.00027397,2]
[379196346,1755183053667,-404.5,0.00027397,2]
[379196347,1755183053678,-400.0,0.00027397,2]
[379196348,1755183053687,-400.0,0.00027397,2]
[379196349,1755183053697,-400.0,0.00027397,2]
[379196350,1755183053707,-585.17,0.00027397,2]
[379196351,1755183053717,-400.0,0.00027397,2]
[379196352,1755183053727,-400.0,0.00027397,2]
[379196353,1755183053737,-578.29,0.00027397,2]
[379196354,1755183053748,-400.0,0.00027397,2]
[379196355,1755183053757,-545.71,0.00027397,2]
[379196356,1755183053768,-1142.65,0.00027397,2]
[379196357,1755183053778,-545.71,0.00027397,2]
[379196358,1755183053788,-545.71,0.00027397,2]
[379196359,1755183053797,-545.71,0.00027397,2]
[379196360,1755183053807,-1328.48,0.00027397,2]
[379196361,1755183053817,-1328.48,0.00027397,2]
[379196362,1755183053827,-1328.48,0.00027397,2]
[379196363,1755183053837,-545.71,0.00027397,2]
[379196364,1755183053846,-545.71,0.00027397,2]
[379196365,1755183053856,-1328.48,0.00027397,2]
[379196366,1755183053866,-545.71,0.00027397,2]
[379196367,1755183053877,-1328.48,0.00027397,2]
[379196368,1755183053887,-545.71,0.00027397,2]
[379196369,1755183053897,-1328.48,0.00027397,2]
[379196370,1755183053906,-545.71,0.00027397,2]
[379196371,1755183053916,-1328.48,0.00027397,2]
[379196372,1755183053926,-400.0,0.00027397,2]
[379196373,1755183053936,-925.23,0.00027397,2]
[379196374,1755183053946,-545.71,0.00027397,2]
[379196375,1755183054085,-1328.48,0.00027397,2]
[379196376,1755183054095,-1328.48,0.00027397,2]
[379196377,1755183054104,-545.71,0.00027397,2]
[379196378,1755183054114,-44.10393942,0.00027397,2]
[379196379,1755183054170,-562.87606058,0.00027397,2]
[379196380,1755183054181,-545.71,0.00027397,2]
[379196381,1755183054191,-1328.48,0.00027397,2]
[379196382,1755183054200,-914.04,0.00027397,2]
[379196383,1755183054210,-1328.48,0.00027397,2]
[379196384,1755183054220,-545.71,0.00027397,2]
[379196385,1755183054229,-2782.8,0.00027397,2]
[379196386,1755183054238,-497.74,0.00027397,2]
[379196387,1755183054248,-545.71,0.00027397,2]
[379196388,1755183054259,-545.71,0.00027397,2]
[379196389,1755183054269,-113.86359083,0.00027397,2]
[379196390,1755183054282,-3825.00640917,0.00027397,2]
[379196391,1755183054291,-400.0,0.00027397,2]
[379196392,1755183054300,-400.0,0.00027397,2]
[379196393,1755183054310,-400.0,0.00027397,2]
[379196394,1755183054319,-650.9,0.00027397,2]
[379196395,1755183054330,-400.0,0.00027397,2]
[379196396,1755183054342,-400.0,0.00027397,2]
[379196397,1755183054354,-400.0,0.00027397,2]
[379196398,1755183054363,-599.05832038,0.00027397,2]
[379196399,1755183055899,-150.0,0.00025007,2]
[379196400,1755183055909,-150.0,0.00025445,2]
[379196401,1755183055918,-150.0,0.00025675,2]
[379196402,1755183055927,-150.0,0.00026422,2]
[379196403,1755183055937,-150.0,0.00026847,2]
[379196404,1755183055947,-150.0,0.00027296,2]
[379196405,1755183055956,-400.0,0.00027397,2]
[379196406,1755183055965,-400.0,0.00027397,2]
[379196407,1755183055974,-400.0,0.00027397,2]
[379196408,1755183055984,-400.0,0.00027397,2]